bitfinex/quotes_BTCUSD_20251102
["timestamp","ask_amount","ask_price","bid_price","bid_amount"]
[1762105286841,1.53590343,110230.0,110220.0,0.001]
[1762105287042,1.56317614,110230.0,110220.0,0.001]
[1762105288643,1.56317572,110230.0,110220.0,0.001]
[1762105290353,1.5631267,110230.0,110220.0,0.001]
[1762105291567,1.530504,110230.0,110220.0,0.001]
[1762105305044,1.90197178,110230.0,110220.0,1e-08]
[1762105305261,1.85324772,110230.0,110220.0,1e-08]
[1762105305468,1.87851641,110230.0,110220.0,1e-08]
[1762105305904,1.35730958,110220.0,110210.0,4.842e-05]
[1762105306104,1.5927474,110220.0,110210.0,4.842e-05]
[1762105306661,1.6200244,110220.0,110210.0,4.842e-05]
[1762105307405,1.6210244,110220.0,110210.0,4.842e-05]
[1762105307526,1.6250244,110220.0,110210.0,0.00104842]
[1762105309177,1.62501336,110220.0,110210.0,0.00104842]
[1762105315750,1.59974467,110220.0,110210.0,0.00104842]
[1762105318365,1.22853889,110220.0,110210.0,0.00104842]
[1762105318744,1.25380758,110220.0,110210.0,0.00104842]
[1762105327792,0.45092548,110220.0,110210.0,0.00104842]
[1762105327992,1.19412304,110220.0,110210.0,0.00104842]
[1762105330166,1.14521406,110220.0,110210.0,0.00104842]
[1762105331566,1.11793706,110220.0,110210.0,0.00104842]
[1762105332945,1.18317204,110220.0,110210.0,0.00104842]
[1762105333176,1.27299105,110220.0,110210.0,0.00104842]
[1762105333639,1.20775607,110220.0,110210.0,0.00104842]
[1762105334310,1.27299105,110220.0,110210.0,0.00104842]
[1762105334525,1.20775607,110220.0,110210.0,0.00104842]
[1762105335723,1.27299105,110220.0,110210.0,0.00104842]
[1762105335942,1.20775607,110220.0,110210.0,0.00104842]
[1762105336192,1.27299105,110220.0,110210.0,0.00104842]
[1762105337060,1.20775607,110220.0,110210.0,0.00104842]
[1762105337284,1.27299105,110220.0,110210.0,0.00104842]
[1762105337943,1.20775607,110220.0,110210.0,0.00104842]
[1762105338435,1.27299105,110220.0,110210.0,0.00104842]
[1762105340292,1.20775607,110220.0,110210.0,0.00104842]
[1762105341411,1.27299105,110220.0,110210.0,0.00104842]
[1762105359101,1.20775607,110220.0,110210.0,0.00104842]
[1762105363505,1.27299105,110220.0,110210.0,0.00104842]
[1762105365606,1.20775607,110220.0,110210.0,0.00104842]
[1762105366840,1.27299105,110220.0,110210.0,0.00104842]
[1762105369384,1.27301436,110220.0,110210.0,0.00104842]
[1762105371516,1.20777938,110220.0,110210.0,0.00104842]
[1762105374012,0.73388738,110220.0,110210.0,0.05309842]
[1762105374493,1.14272121,110220.0,110210.0,0.05309842]
[1762105375623,0.80272121,110220.0,110210.0,0.23457015]
[1762105376022,0.75374445,110220.0,110210.0,0.23457015]
[1762105376454,0.76121916,110220.0,110210.0,0.23457015]
[1762105377276,0.76121916,110220.0,110210.0,0.23357015]
[1762105377277,0.75621916,110220.0,110210.0,0.23357015]
[1762105377719,0.75721916,110220.0,110210.0,0.05209842]
[1762105378514,1.12859876,110220.0,110210.0,0.05209842]
[1762105379304,1.12859876,110220.0,110210.0,0.23357015]
[1762105379512,1.12859876,110220.0,110210.0,0.05209842]
[1762105379951,1.12859876,110220.0,110210.0,0.23357015]
[1762105380377,1.12859876,110220.0,110210.0,0.05209842]
[1762105380751,0.38562038,110220.0,110210.0,0.05209842]
[1762105380967,1.12859876,110220.0,110210.0,0.23357015]
[1762105382031,1.12859876,110220.0,110210.0,0.05209842]
[1762105382229,0.75710957,110220.0,110210.0,0.05209842]
[1762105382388,0.72445802,110220.0,110210.0,0.05209842]
[1762105382596,1.09594721,110220.0,110210.0,0.05209842]
[1762105388614,0.04506635,110220.0,110210.0,0.26087066]
[1762105388826,0.02445311,110230.0,110220.0,0.18145527]
[1762105389033,0.4531175,110250.0,110230.0,0.1814388]
[1762105389266,0.37148919,110250.0,110240.0,0.23347235]
[1762105389479,0.37148919,110250.0,110240.0,0.30347265]
[1762105389692,0.40767147,110250.0,110240.0,0.30347265]
[1762105389906,0.57245193,110260.0,110250.0,0.18140589]
[1762105390115,0.93487165,110260.0,110250.0,0.23345589]
[1762105390327,0.38199302,110260.0,110250.0,0.23345589]
[1762105390530,0.38199302,110260.0,110250.0,0.28046233]
[1762105390739,0.38199302,110260.0,110250.0,0.30772505]
[1762105391156,0.56386591,110260.0,110250.0,0.30772505]
[1762105391363,0.60004819,110260.0,110250.0,0.12631916]
[1762105392082,0.60004819,110260.0,110250.0,0.07931272]
[1762105394295,0.62531688,110260.0,110250.0,0.07931272]
[1762105394730,0.99680607,110260.0,110250.0,0.07931272]
[1762105395149,0.99680607,110260.0,110250.0,0.05205]
[1762105399281,0.99680607,110260.0,110250.0,0.02853]
[1762105399724,0.99680607,110260.0,110250.0,0.05272]
[1762105400643,1.0162877,110260.0,110250.0,0.05272]
[1762105401482,0.1814388,110230.0,110220.0,0.01245]
[1762105401707,0.6793752,110230.0,110220.0,0.05525656]
[1762105402766,0.6793752,110230.0,110220.0,0.02799]
[1762105403224,0.6793752,110230.0,110220.0,0.05218]
[1762105403431,0.6803752,110230.0,110220.0,0.05218]
[1762105404256,0.21763755,110220.0,110210.0,0.02726852]
[1762105404464,0.21765401,110210.0,110200.0,0.0121]
[1762105404677,0.67940813,110210.0,110200.0,0.02715]
[1762105404942,0.70604115,110210.0,110200.0,0.02715]
[1762105405212,0.72552916,110210.0,110200.0,0.0501]
[1762105405425,0.72552916,110210.0,110200.0,0.05014842]
[1762105406097,0.72552916,110210.0,110200.0,0.06114842]
[1762105406304,0.72752916,110210.0,110200.0,0.06114842]
[1762105406511,0.72752916,110210.0,110200.0,0.06414842]
[1762105406715,0.72552916,110210.0,110200.0,0.05314842]
[1762105406916,0.72552916,110210.0,110200.0,0.05014842]
[1762105407122,0.72552916,110210.0,110200.0,0.05214842]
[1762105407532,0.72552916,110210.0,110200.0,0.02919842]
[1762105407965,0.72652916,110210.0,110200.0,0.03419842]
[1762105408189,0.72652916,110210.0,110200.0,0.05714842]
[1762105409832,0.35503997,110210.0,110200.0,0.05714842]
[1762105410037,0.72652916,110210.0,110200.0,0.05714842]
[1762105411198,0.72652916,110210.0,110200.0,0.0822963]
[1762105411410,0.68040813,110210.0,110200.0,0.0822963]
[1762105411608,0.68040813,110210.0,110200.0,0.2637845]
[1762105411609,0.70704115,110210.0,110200.0,0.2637845]
[1762105411834,0.70704115,110210.0,110200.0,0.23863662]
[1762105412287,0.33555196,110210.0,110200.0,0.23863662]
[1762105412488,0.70704115,110210.0,110200.0,0.23863662]
[1762105412911,0.68040813,110210.0,110200.0,0.23863662]
[1762105419205,0.30891894,110210.0,110200.0,0.23863662]
[1762105424496,0.12744721,110210.0,110200.0,0.23863662]
[1762105424701,0.30891894,110210.0,110200.0,0.05714842]
[1762105424958,0.33555196,110210.0,110200.0,0.05714842]
[1762105425376,0.33555196,110210.0,110200.0,0.23863662]
[1762105426034,0.15408023,110210.0,110200.0,0.23863662]
[1762105427073,0.33555196,110210.0,110200.0,0.23863662]
[1762105427303,0.15408023,110210.0,110200.0,0.23863662]
[1762105427681,0.33555196,110210.0,110200.0,0.23863662]
[1762105429442,0.35508761,110210.0,110200.0,0.23863662]
[1762105429873,0.35508761,110210.0,110200.0,0.05714842]
[1762105431080,0.7265768,110210.0,110200.0,0.05714842]
[1762105431505,0.7265768,110210.0,110200.0,0.05708842]
[1762105438170,0.7265768,110210.0,110200.0,0.08223035]
[1762105440367,0.72662479,110210.0,110200.0,0.08223035]
[1762105441444,0.72662479,110210.0,110200.0,0.05708842]
[1762105442161,0.72662479,110210.0,110200.0,0.00704842]
[1762105442394,0.77628617,110210.0,110200.0,0.00704842]
[1762105442596,1.11628617,110210.0,110200.0,0.00704842]
[1762105442827,1.16526293,110210.0,110200.0,0.00704842]
[1762105443411,1.25508194,110210.0,110200.0,0.00704842]
[1762105443831,1.25408194,110210.0,110200.0,0.00204842]
[1762105444191,1.25508194,110210.0,110200.0,0.00504842]
[1762105444390,1.25508194,110210.0,110200.0,0.00304842]
[1762105444597,1.16426293,110210.0,110200.0,4.842e-05]
[1762105445025,1.08763462,110210.0,110200.0,0.00104842]
[1762105445244,1.13657204,110210.0,110200.0,0.00104842]
[1762105445463,1.13957204,110210.0,110200.0,0.00104842]
[1762105447989,1.13960079,110210.0,110200.0,0.00104842]
[1762105449651,1.2294198,110210.0,110200.0,0.00104842]
[1762105451858,1.13960079,110210.0,110200.0,0.00104842]
[1762105452421,1.17218437,110210.0,110200.0,0.00104842]
[1762105455953,1.17216712,110210.0,110200.0,0.00104842]
[1762105457448,1.1232297,110210.0,110200.0,0.00104842]
[1762105462132,1.17216712,110210.0,110200.0,0.00104842]
[1762105462537,1.1232297,110210.0,110200.0,0.00104842]
[1762105463136,1.17216712,110210.0,110200.0,0.00104842]
[1762105469592,1.17216712,110210.0,110200.0,0.02858842]
[1762105469808,1.17216712,110210.0,110200.0,0.05310842]
[1762105470008,1.17216712,110210.0,110200.0,0.02858842]
[1762105470227,1.17216712,110210.0,110200.0,0.05326136]
[1762105471243,1.17216712,110210.0,110200.0,0.02858842]
[1762105471663,1.19944479,110210.0,110200.0,0.02858842]
[1762105472483,1.1455341,110210.0,110200.0,0.05310842]
[1762105473195,0.8055341,110210.0,110200.0,0.05310842]
[1762105474100,0.78852427,110210.0,110200.0,0.05310842]
[1762105474325,0.76407628,110210.0,110200.0,0.05310842]
[1762105474762,0.76407628,110210.0,110200.0,0.07778136]
[1762105475216,0.76407628,110210.0,110200.0,0.05310842]
[1762105476329,0.7314927,110210.0,110200.0,0.05310842]
[1762105476768,0.7314927,110210.0,110200.0,0.23459662]
[1762105476969,0.76407628,110210.0,110200.0,0.23459662]
[1762105477170,0.75812572,110210.0,110200.0,0.05310842]
[1762105477577,0.75812572,110210.0,110200.0,0.25926956]
[1762105478134,0.7314927,110210.0,110200.0,0.25926956]
[1762105478727,0.7264927,110210.0,110200.0,0.25826956]
[1762105479232,0.7234927,110210.0,110200.0,0.25826956]
[1762105480038,0.7244927,110210.0,110200.0,0.26026956]
[1762105480254,0.72449391,110210.0,110200.0,0.26026956]
[1762105481772,0.72449391,110210.0,110200.0,0.23559662]
[1762105483485,0.75112693,110210.0,110200.0,0.23559662]
[1762105484252,0.5696552,110210.0,110200.0,0.23559662]
[1762105484634,0.75112693,110210.0,110200.0,0.23559662]
[1762105484814,0.72666149,110210.0,110200.0,0.23559662]
[1762105485017,0.72666149,110210.0,110200.0,0.27851838]
[1762105485626,0.72666149,110210.0,110200.0,0.23559662]
[1762105485825,0.54518976,110210.0,110200.0,0.23559662]
[1762105486234,0.72666149,110210.0,110200.0,0.23559662]
[1762105486655,0.54518976,110210.0,110200.0,0.23559662]
[1762105487725,0.17365258,110210.0,110200.0,0.23559662]
[1762105487981,0.14701956,110210.0,110200.0,0.23559662]
[1762105488183,0.12744721,110210.0,110200.0,0.23559662]
[1762105488735,0.49898439,110210.0,110200.0,0.23559662]
[1762105489000,0.51855674,110210.0,110200.0,0.23559662]
[1762105489727,0.14701956,110210.0,110200.0,0.27851838]
[1762105490007,0.12744721,110210.0,110200.0,0.27851838]
[1762105492019,0.12744721,110210.0,110200.0,0.23559662]
[1762105498699,0.30891894,110210.0,110200.0,0.23559662]
[1762105498904,0.32849129,110210.0,110200.0,0.23559662]
[1762105500470,0.69998024,110210.0,110200.0,0.23559662]
[1762105500711,0.72661326,110210.0,110200.0,0.23559662]
[1762105501623,0.4548766,110210.0,110200.0,0.23559662]
[1762105501840,0.4548766,110210.0,110200.0,0.28124557]
[1762105501841,0.42824358,110210.0,110200.0,0.28124557]
[1762105502458,0.60971531,110210.0,110200.0,0.28124557]
[1762105503276,0.60971531,110210.0,110200.0,0.23559662]
[1762105506567,0.42824358,110210.0,110200.0,0.23559662]
[1762105506934,0.05675463,110210.0,110200.0,0.23559662]
[1762105507138,0.40867123,110210.0,110200.0,0.23559662]
[1762105507510,0.42824358,110210.0,110200.0,0.23559662]
[1762105507955,0.02057235,110210.0,110200.0,0.31839446]
[1762105508141,0.001,110210.0,110200.0,0.68988341]
[1762105508730,0.001,110210.0,110200.0,0.31839446]
[1762105508935,0.42724358,110220.0,110210.0,0.18147173]
[1762105509285,0.42724358,110220.0,110210.0,0.23394173]
[1762105509511,0.60869885,110220.0,110210.0,0.23394173]
[1762105510860,0.60869885,110220.0,110210.0,0.23594173]
[1762105511024,0.60869885,110220.0,110210.0,0.23994173]
[1762105511231,0.60969885,110220.0,110210.0,0.23994173]
[1762105511908,0.42824358,110220.0,110210.0,0.23994173]
[1762105512127,0.42824358,110220.0,110210.0,0.27709739]
[1762105512453,0.60969885,110220.0,110210.0,0.27709739]
[1762105513933,0.60969885,110220.0,110210.0,0.09562566]
[1762105514353,1.00781394,110220.0,110210.0,0.09562566]
[1762105514566,1.03227938,110220.0,110210.0,0.05847]
[1762105514766,0.66079043,110220.0,110210.0,0.05847]
[1762105517335,0.63632499,110220.0,110210.0,0.05847]
[1762105518168,0.63632499,110220.0,110210.0,0.23994173]
[1762105518977,0.45486972,110220.0,110210.0,0.23994173]
[1762105519517,0.63632499,110220.0,110210.0,0.23994173]
[1762105527073,0.60969885,110220.0,110210.0,0.23994173]
[1762105531762,0.42824358,110220.0,110210.0,0.26721134]
[1762105531942,0.42824358,110220.0,110210.0,0.31322514]
[1762105533255,0.60969885,110220.0,110210.0,0.31322514]
[1762105533651,0.60969885,110220.0,110210.0,0.08573961]
[1762105533830,0.60969885,110220.0,110210.0,0.05847]
[1762105534645,0.63632499,110220.0,110210.0,0.05847]
[1762105535453,0.66079043,110220.0,110210.0,0.05847]
[1762105535880,0.63632499,110220.0,110210.0,0.05847]
[1762105536484,0.66079043,110220.0,110210.0,0.05847]
[1762105541149,1.03227938,110220.0,110210.0,0.05847]
[1762105541826,1.03227938,110220.0,110210.0,0.03395]
[1762105542265,1.05955097,110220.0,110210.0,0.05752]
[1762105556784,1.03292483,110220.0,110210.0,0.05752]
[1762105558145,1.81703727,110220.0,110210.0,0.006]
[1762105558349,1.85852117,110220.0,110210.0,0.006]
[1762105558596,1.82593759,110220.0,110210.0,0.006]
[1762105558818,1.82593759,110220.0,110210.0,0.002]
[1762105559011,1.82493759,110220.0,110210.0,0.002]
[1762105559218,1.77900017,110220.0,110210.0,0.003]
[1762105559437,1.82795463,110220.0,110210.0,0.003]
[1762105559604,0.21765401,110210.0,110200.0,4.842e-05]
[1762105559998,1.1467435,110210.0,110200.0,4.842e-05]
[1762105560366,1.1740201,110210.0,110200.0,4.842e-05]
[1762105560741,1.22597456,110210.0,110200.0,0.00104842]
[1762105561124,1.1790201,110210.0,110200.0,0.00104842]
[1762105562410,0.90496999,110210.0,110200.0,0.00104842]
[1762105563234,0.81515098,110210.0,110200.0,0.00104842]
[1762105563438,0.81514253,110210.0,110200.0,0.00104842]
[1762105564199,1.15514253,110210.0,110200.0,0.00104842]
[1762105564400,1.51932927,110210.0,110200.0,0.00104842]
[1762105564605,1.14766467,110210.0,110200.0,0.00104842]
[1762105564729,1.23748368,110210.0,110200.0,0.00104842]
[1762105566633,1.24493746,110210.0,110200.0,0.00104842]
[1762105566798,1.28642552,110210.0,110200.0,0.00104842]
[1762105567179,1.23747106,110210.0,110200.0,0.00104842]
[1762105570481,1.24492535,110210.0,110200.0,0.00104842]
[1762105571103,1.1284802,110210.0,110200.0,0.01654842]
[1762105571537,1.1284802,110210.0,110200.0,0.00104842]
[1762105571738,1.15510634,110210.0,110200.0,0.00104842]
[1762105571971,1.14764375,110210.0,110200.0,0.00104842]
[1762105573115,0.18150467,110190.0,110180.0,0.029346]
[1762105573316,0.18150467,110190.0,110180.0,0.02939442]
[1762105573317,0.59935985,110190.0,110180.0,0.02939442]
[1762105573520,0.59935985,110190.0,110180.0,0.04489442]
[1762105573734,0.62663921,110190.0,110180.0,0.04489442]
[1762105574825,0.62763921,110190.0,110180.0,0.05189442]
[1762105575696,0.62763921,110190.0,110180.0,0.05489442]
[1762105577487,0.60807477,110190.0,110180.0,0.05489442]
[1762105577665,0.58144863,110190.0,110180.0,0.05489442]
[1762105578124,0.60098181,110190.0,110180.0,0.05489442]
[1762105578571,0.60098181,110190.0,110180.0,0.23641556]
[1762105579060,0.60098181,110190.0,110180.0,0.23663638]
[1762105579906,0.20978403,110190.0,110180.0,0.27973673]
[1762105580110,0.18250467,110190.0,110180.0,0.27973673]
[1762105581053,0.001,110190.0,110180.0,0.27973673]
[1762105581472,0.03718228,110190.0,110180.0,0.27973673]
[1762105581908,0.03718228,110190.0,110180.0,0.30701375]
[1762105586329,0.001,110190.0,110180.0,0.30701375]
[1762105608616,0.001,110190.0,110180.0,0.67867835]
[1762105608999,0.23719283,110210.0,110200.0,0.1814882]
[1762105609233,0.23719283,110210.0,110200.0,0.2645148]
[1762105609460,0.05572105,110210.0,110200.0,0.27028598]
[1762105609664,0.03618228,110210.0,110200.0,0.27028598]
[1762105611074,0.04395797,110220.0,110210.0,0.18147173]
[1762105611225,0.72903449,110230.0,110220.0,0.18145527]
[1762105611427,0.72903449,110230.0,110220.0,0.23395527]
[1762105611638,0.76521677,110230.0,110220.0,0.23395527]
[1762105612279,0.73258052,110230.0,110220.0,0.0525]
[1762105612479,0.73258052,110230.0,110220.0,0.23400369]
[1762105612680,0.73258052,110230.0,110220.0,0.27710404]
[1762105612884,0.73258052,110230.0,110220.0,0.23400369]
[1762105614337,0.70816132,110230.0,110220.0,0.23400369]
[1762105614535,0.71016132,110230.0,110220.0,0.23400369]
[1762105616640,0.32942478,110230.0,110220.0,0.23400369]
[1762105618413,0.35605092,110230.0,110220.0,0.23400369]
[1762105619224,0.72771552,110230.0,110220.0,0.23400369]
[1762105619443,0.54627672,110230.0,110220.0,0.23400369]
[1762105619845,0.08434719,110230.0,110220.0,0.28353548]
[1762105620090,0.03818228,110230.0,110220.0,0.28353548]
[1762105620736,0.03618228,110230.0,110220.0,0.28353548]
[1762105620958,0.03618228,110230.0,110220.0,0.28553548]
[1762105621370,0.20096301,110240.0,110230.0,0.1814388]
[1762105621587,0.23714529,110240.0,110230.0,0.2339388]
[1762105622255,0.05572105,110240.0,110230.0,0.2339388]
[1762105622453,0.03618228,110240.0,110230.0,0.26380514]
[1762105622631,0.21760463,110240.0,110230.0,0.26380514]
[1762105622841,0.2371434,110240.0,110230.0,0.26380514]
[1762105623064,0.608808,110240.0,110230.0,0.0525]
[1762105623529,0.63543414,110240.0,110230.0,0.0525]
[1762105623930,0.63743414,110240.0,110230.0,0.0525]
[1762105624570,0.6370857,110240.0,110230.0,0.0525]
[1762105624977,1.00840186,110240.0,110230.0,0.0525]
[1762105625224,1.00840186,110240.0,110230.0,0.2339388]
[1762105626060,0.6370857,110240.0,110230.0,0.2339388]
[1762105626370,0.6370857,110240.0,110230.0,0.0525]
[1762105626785,1.00840186,110240.0,110230.0,0.0525]
[1762105628061,1.09822087,110240.0,110230.0,0.02858]
[1762105628271,0.21762108,110230.0,110220.0,0.03598842]
[1762105628473,1.05051833,110230.0,110220.0,0.03598842]
[1762105628678,1.07714447,110230.0,110220.0,0.05254842]
[1762105629156,1.07714447,110230.0,110220.0,0.02862842]
[1762105629360,1.09667352,110230.0,110220.0,0.02862842]
[1762105629977,1.09667352,110230.0,110220.0,0.05254842]
[1762105630402,1.09667352,110230.0,110220.0,0.05554842]
[1762105630969,1.09667352,110230.0,110220.0,0.05354842]
[1762105631140,1.09667352,110230.0,110220.0,0.05254842]
[1762105631492,1.09867352,110230.0,110220.0,0.05254842]
[1762105631903,1.09667352,110230.0,110220.0,0.05254842]
[1762105633253,1.09867352,110230.0,110220.0,0.05167842]
[1762105633469,1.125944,110230.0,110220.0,0.05167842]
[1762105635350,1.125944,110230.0,110220.0,0.02775842]
[1762105635539,1.1503632,110230.0,110220.0,0.02775842]
[1762105637567,1.18354669,110230.0,110220.0,0.02775842]
[1762105638195,1.1503632,110230.0,110220.0,0.02775842]
[1762105638801,1.1503632,110230.0,110220.0,0.05150842]
[1762105639531,1.1503632,110230.0,110220.0,0.02775842]
[1762105640713,1.1503632,110230.0,110220.0,0.05150842]
[1762105641922,1.1503632,110230.0,110220.0,0.02775842]
[1762105642132,1.1503632,110230.0,110220.0,0.05150842]
[1762105642756,1.12309272,110230.0,110220.0,0.05150842]
[1762105645186,1.12309272,110230.0,110220.0,0.02775842]
[1762105645766,1.15813639,110230.0,110220.0,0.02775842]
[1762105645971,1.15813639,110230.0,110220.0,0.05185842]
[1762105647365,1.12309272,110230.0,110220.0,0.05185842]
[1762105649040,1.12309272,110230.0,110220.0,0.02775842]
[1762105650322,1.12309272,110230.0,110220.0,0.05185842]
[1762105657263,1.15572897,110230.0,110220.0,0.05185842]
[1762105660183,1.15572897,110230.0,110220.0,0.02775842]
[1762105660596,1.24554798,110230.0,110220.0,0.02775842]
[1762105660729,1.24554798,110230.0,110220.0,0.02681842]
[1762105661145,1.15572897,110230.0,110220.0,0.02681842]
[1762105663467,1.15572897,110230.0,110220.0,0.05091842]
[1762105665150,1.15572897,110230.0,110220.0,0.02681842]
[1762105665850,1.15572897,110230.0,110220.0,4.842e-05]
[1762105667211,1.14831633,110230.0,110220.0,4.842e-05]
[1762105668703,1.23813534,110230.0,110220.0,4.842e-05]
[1762105669556,1.23813495,110230.0,110220.0,0.01536842]
[1762105669989,1.14831594,110230.0,110220.0,0.01536842]
[1762105670737,1.14831594,110230.0,110220.0,0.02728842]
[1762105671045,1.17280254,110230.0,110220.0,0.02728842]
[1762105671269,1.14831594,110230.0,110220.0,0.05152842]
[1762105671475,1.17280235,110230.0,110220.0,0.05152842]
[1762105672028,1.26262136,110230.0,110220.0,4.842e-05]
[1762105672195,1.23813495,110230.0,110220.0,0.01536842]
[1762105673759,1.14831594,110230.0,110220.0,0.01536842]
[1762105674798,1.14831594,110230.0,110220.0,4.842e-05]
[1762105676231,1.17279775,110230.0,110220.0,4.842e-05]
[1762105676636,1.5372704,110230.0,110220.0,4.842e-05]
[1762105676827,1.5492904,110230.0,110220.0,4.842e-05]
[1762105677054,1.60647316,110230.0,110220.0,4.842e-05]
[1762105682236,1.97778932,110230.0,110220.0,4.842e-05]
[1762105683155,1.97578932,110230.0,110220.0,4.842e-05]
[1762105683574,1.98478932,110230.0,110220.0,0.00104842]
[1762105683789,1.98878932,110230.0,110220.0,0.00104842]
[1762105686520,1.61806488,110230.0,110220.0,0.00104842]
[1762105689373,1.52824587,110230.0,110220.0,0.00104842]
[1762105690194,1.13000771,110230.0,110220.0,0.01636842]
[1762105690406,1.16260034,110230.0,110220.0,0.01636842]
[1762105691614,1.15058034,110230.0,110220.0,0.01636842]
[1762105697845,1.11798771,110230.0,110220.0,0.01636842]
[1762105698261,1.15059091,110230.0,110220.0,0.01636842]
[1762105698681,1.15059091,110230.0,110220.0,0.05101842]
[1762105698894,1.15059091,110230.0,110220.0,0.02800842]
[1762105699836,1.15059091,110230.0,110220.0,0.05101842]
[1762105700867,1.15056892,110230.0,110220.0,0.05101842]
[1762105701870,1.10161446,110230.0,110220.0,0.05101842]
[1762105702488,1.15056892,110230.0,110220.0,0.05101842]
[1762105703133,1.15056892,110230.0,110220.0,0.00104842]
[1762105703338,1.15056892,110230.0,110220.0,0.01699842]
[1762105703539,1.15056892,110230.0,110220.0,0.02863842]
[1762105704311,1.15056892,110230.0,110220.0,0.05122842]
[1762105704757,0.81056892,110230.0,110220.0,0.05122842]
[1762105705528,0.39748679,110230.0,110220.0,0.05122842]
[1762105705727,0.76909881,110230.0,110220.0,0.05122842]
[1762105707585,0.73649561,110230.0,110220.0,0.05122842]
[1762105709152,0.73649561,110230.0,110220.0,0.23268369]
[1762105709968,0.54205681,110230.0,110220.0,0.23168369]
[1762105710238,0.72349561,110230.0,110220.0,0.23168369]
[1762105710396,0.72449561,110230.0,110220.0,0.25895283]
[1762105711356,0.70002708,110230.0,110220.0,0.25895283]
[1762105712487,0.70002708,110230.0,110220.0,0.23168369]
[1762105714458,0.42832335,110230.0,110220.0,0.23168369]
[1762105714656,0.05671133,110230.0,110220.0,0.27691801]
[1762105714910,0.03718228,110230.0,110220.0,0.27691801]
[1762105715077,0.03718228,110230.0,110220.0,0.30418462]
[1762105715747,0.03618228,110230.0,110220.0,0.30418462]
[1762105715908,0.03618228,110230.0,110220.0,0.30718462]
[1762105716263,0.03618228,110230.0,110220.0,0.30618462]
[1762105716464,0.03618228,110230.0,110220.0,0.30418462]
[1762105716668,0.03618228,110230.0,110220.0,0.30718462]
[1762105716871,0.03718228,110230.0,110220.0,0.31318462]
[1762105727167,0.001,110230.0,110220.0,0.31318462]
[1762105727778,0.03718228,110230.0,110220.0,0.31318462]
[1762105730198,0.001,110230.0,110220.0,0.31318462]
[1762105743706,0.001,110230.0,110220.0,0.2679503]
[1762105743882,0.1824388,110230.0,110220.0,0.2679503]
[1762105744456,0.68049803,110230.0,110220.0,0.08649503]
[1762105744669,0.72670665,110230.0,110220.0,0.05922842]
[1762105744836,0.72670665,110230.0,110220.0,0.03663842]
[1762105745632,0.72670665,110230.0,110220.0,0.03063842]
[1762105745834,0.72570665,110230.0,110220.0,0.02763842]
[1762105746056,0.72570665,110230.0,110220.0,0.05154842]
[1762105746255,0.72570665,110230.0,110220.0,0.05254842]
[1762105746459,1.09706187,110230.0,110220.0,0.05254842]
[1762105746835,1.09706187,110230.0,110220.0,0.05454842]
[1762105747638,0.72557825,110230.0,110220.0,0.05454842]
[1762105747844,0.69895211,110230.0,110220.0,0.23600369]
[1762105748048,0.69895211,110230.0,110220.0,0.10021423]
[1762105748203,0.69895211,110230.0,110220.0,0.2816695]
[1762105748411,0.69895211,110230.0,110220.0,0.10021423]
[1762105748642,0.69895211,110230.0,110220.0,0.05454842]
[1762105749305,0.60868718,110230.0,110220.0,0.23600369]
[1762105750059,0.60868718,110230.0,110220.0,0.05454842]
[1762105750266,0.60868718,110230.0,110220.0,0.23600369]
[1762105750837,0.60868718,110230.0,110220.0,0.05454842]
[1762105752219,0.60868718,110230.0,110220.0,0.23600369]
[1762105756159,0.60868718,110230.0,110220.0,0.05454842]
[1762105756702,0.60868718,110230.0,110220.0,0.23600369]
[1762105757459,0.60868718,110230.0,110220.0,0.05454842]
[1762105761287,0.60868718,110230.0,110220.0,0.23600369]
[1762105761505,0.42724838,110230.0,110220.0,0.27894247]
[1762105761710,0.42724838,110230.0,110220.0,0.23600369]
[1762105761913,0.01958248,110230.0,110220.0,0.23600369]
[1762105762121,0.59695915,110240.0,110230.0,0.1814388]
[1762105762322,0.63314143,110240.0,110230.0,0.2345088]
[1762105762724,0.6086729,110240.0,110230.0,0.2345088]
[1762105762922,0.6086729,110240.0,110230.0,0.26439701]
[1762105763365,0.6096729,110240.0,110230.0,0.26439701]
[1762105763972,0.6096729,110240.0,110230.0,0.31025108]
[1762105764668,0.6096729,110240.0,110230.0,0.26439701]
[1762105764869,0.60967073,110240.0,110230.0,0.26439701]
[1762105767159,0.05676476,110240.0,110230.0,0.26439701]
[1762105767282,0.21860463,110240.0,110230.0,0.26439701]
[1762105767492,0.23818711,110240.0,110230.0,0.26439701]
[1762105767713,0.60967073,110240.0,110230.0,0.26439701]
[1762105767889,0.42724838,110240.0,110230.0,0.26439701]
[1762105768109,0.42824838,110240.0,110230.0,0.26739701]
[1762105768319,0.42824838,110240.0,110230.0,0.26839701]
[1762105768934,0.60967073,110240.0,110230.0,0.26839701]
[1762105769133,0.23818711,110240.0,110230.0,0.26839701]
[1762105769303,0.60967073,110240.0,110230.0,0.26839701]
[1762105769907,0.60967073,110240.0,110230.0,0.08695821]
[1762105770528,0.60967073,110240.0,110230.0,0.26839701]
[1762105774620,0.42824838,110240.0,110230.0,0.26839701]
[1762105774829,0.60967073,110240.0,110230.0,0.26839701]
[1762105775168,0.42824838,110240.0,110230.0,0.26839701]
[1762105781159,0.60967073,110240.0,110230.0,0.08695821]
[1762105781510,0.60967073,110240.0,110230.0,0.26839701]
[1762105781933,0.60967073,110240.0,110230.0,0.08695821]
[1762105782134,0.60967073,110240.0,110230.0,0.26839701]
[1762105782939,0.42824838,110240.0,110230.0,0.26839701]
[1762105787137,0.42824838,110240.0,110230.0,0.26839701]
[1762105787537,0.60967073,110240.0,110230.0,0.26839701]
[1762105790681,0.42824838,110240.0,110230.0,0.26839701]
[1762105791708,0.60967073,110240.0,110230.0,0.26839701]
[1762105791919,0.42824838,110240.0,110230.0,0.26839701]
[1762105797169,0.60967073,110240.0,110230.0,0.26839701]
[1762105797310,0.42824838,110240.0,110230.0,0.26839701]
[1762105797528,0.60967073,110240.0,110230.0,0.26839701]
[1762105798182,0.42824838,110240.0,110230.0,0.26839701]
[1762105799490,0.42824838,110240.0,110230.0,0.31455103]
[1762105799900,0.42824838,110240.0,110230.0,0.26839701]
[1762105801632,0.05676476,110240.0,110230.0,0.26839701]
[1762105801838,0.03718228,110240.0,110230.0,0.26839701]
[1762105802603,0.4086659,110240.0,110230.0,0.26839701]
[1762105802753,0.05676476,110240.0,110230.0,0.26839701]
[1762105802937,0.03718228,110240.0,110230.0,0.26839701]
[1762105803398,0.001,110240.0,110230.0,0.35442572]
[1762105804947,0.37248362,110240.0,110230.0,0.35442572]
[1762105805155,0.3920661,110240.0,110230.0,0.35442572]
[1762105807182,0.3920661,110240.0,110230.0,0.26839701]
[1762105807590,0.57348845,110240.0,110230.0,0.26839701]
[1762105808320,0.20200483,110240.0,110230.0,0.26839701]
[1762105808502,0.57330019,110240.0,110230.0,0.26839701]
[1762105809685,0.20200483,110240.0,110230.0,0.26839701]
[1762105811188,0.57330019,110240.0,110230.0,0.26839701]
[1762105811402,0.6997474,110240.0,110230.0,0.08695821]
[1762105811627,0.6997474,110240.0,110230.0,0.26839701]
[1762105811864,0.6997474,110240.0,110230.0,0.08695821]